[Event "*** Titled Tuesday Blitz"]
[Site "Chess.com"]
[Date "2020.04.28"]
[Round "5"]
[White "zivicd"]
[Black "Andrei_Belozerov"]
[Result "0-1"]
[WhiteElo "2226"]
[BlackElo "2585"]
[TimeControl "180+1"]
[EndTime "10:54:48 PDT"]
[Termination "Andrei_Belozerov won by resignation"]

1. e4 {[%clk 0:03:00.9]} 1... c5 {[%clk 0:02:59.4]} 2. Nc3 {[%clk 0:03:00.2]}
2... Nc6 {[%clk 0:02:56.9]} 3. g3 {[%clk 0:03:00.2]} 3... g6 {[%clk 0:02:56.1]}
4. Bg2 {[%clk 0:03:00.7]} 4... Bg7 {[%clk 0:02:55.5]} 5. d3 {[%clk 0:03:01.2]}
5... d6 {[%clk 0:02:54.9]} 6. Be3 {[%clk 0:03:01.2]} 6... Nf6 {[%clk 0:02:53.1]}
7. h3 {[%clk 0:03:00.7]} 7... O-O {[%clk 0:02:52.3]} 8. Qd2 {[%clk 0:03:00.3]}
8... Rb8 {[%clk 0:02:49.6]} 9. Bh6 {[%clk 0:02:58.6]} 9... b5 {[%clk 0:02:48.6]}
10. Bxg7 {[%clk 0:02:55.1]} 10... Kxg7 {[%clk 0:02:47.8]} 11. a3 {[%clk
0:02:53.7]} 11... a5 {[%clk 0:02:46.6]} 12. f4 {[%clk 0:02:53.8]} 12... b4
{[%clk 0:02:46]} 13. axb4 {[%clk 0:02:44.9]} 13... axb4 {[%clk 0:02:45.6]} 14.
Nd1 {[%clk 0:02:43.4]} 14... Nd4 {[%clk 0:02:42.2]} 15. Nf3 {[%clk 0:02:39.3]}
15... Qb6 {[%clk 0:02:41.5]} 16. O-O {[%clk 0:02:33.3]} 16... Bb7 {[%clk
0:02:15.2]} 17. Ne3 {[%clk 0:02:31.8]} 17... Nxf3+ {[%clk 0:02:07.3]} 18. Bxf3
{[%clk 0:02:30.1]} 18... c4 {[%clk 0:02:06.7]} 19. Kh2 {[%clk 0:02:24.2]} 19...
cxd3 {[%clk 0:02:03.3]} 20. cxd3 {[%clk 0:02:20]} 20... Rfc8 {[%clk 0:01:53.8]}
21. g4 {[%clk 0:02:15.6]} 21... Qd4 {[%clk 0:01:48.1]} 22. Rfd1 {[%clk
0:01:44.4]} 22... b3 {[%clk 0:01:46.5]} 23. g5 {[%clk 0:01:43.3]} 23... Nd7
{[%clk 0:01:43.8]} 24. Rdc1 {[%clk 0:01:40.8]} 24... Nc5 {[%clk 0:01:42.1]} 25.
Qc3 {[%clk 0:01:26.3]} 25... Qxc3 {[%clk 0:01:39.8]} 26. Rxc3 {[%clk 0:01:26]}
26... Ra8 {[%clk 0:01:26.8]} 27. Rxa8 {[%clk 0:01:07.8]} 27... Rxa8 {[%clk
0:01:26]} 28. Kg3 {[%clk 0:01:07]} 28... Ra2 {[%clk 0:01:25]} 29. Nc4 {[%clk
0:01:02.7]} 29... Ba6 {[%clk 0:01:22.6]} 30. e5 {[%clk 0:00:28.4]} 30... Bxc4
{[%clk 0:01:19.4]} 31. Rxc4 {[%clk 0:00:23.7]} 31... Rxb2 {[%clk 0:01:17.6]} 32.
exd6 {[%clk 0:00:22.3]} 32... exd6 {[%clk 0:01:16.8]} 33. d4 {[%clk 0:00:14.9]}
33... Ne6 {[%clk 0:01:12.1]} 34. Rb4 {[%clk 0:00:14.9]} 34... Rd2 {[%clk
0:01:09.1]} 35. Rxb3 {[%clk 0:00:14]} 35... Nxd4 {[%clk 0:01:08]} 36. Re3 {[%clk
0:00:13]} 36... Nf5+ {[%clk 0:01:07.1]} 0-1

[Event "*** Titled Tuesday Blitz"]
[Site "Chess.com"]
[Date "2020.04.28"]
[Round "5"]
[White "Batsai"]
[Black "AttilaTurzo"]
[Result "0-1"]
[WhiteElo "2247"]
[BlackElo "2486"]
[TimeControl "180+1"]
[EndTime "10:54:49 PDT"]
[Termination "AttilaTurzo won by resignation"]

1. e4 {[%clk 0:03:00.9]} 1... c5 {[%clk 0:02:32.4]} 2. Nf3 {[%clk 0:02:56]} 2...
Nc6 {[%clk 0:02:32.2]} 3. d4 {[%clk 0:02:55.2]} 3... cxd4 {[%clk 0:02:33.1]} 4.
Nxd4 {[%clk 0:02:56.1]} 4... Nf6 {[%clk 0:02:33.7]} 5. Nc3 {[%clk 0:02:52.8]}
5... d6 {[%clk 0:02:33.9]} 6. Bg5 {[%clk 0:02:42.5]} 6... e6 {[%clk 0:02:33.7]}
7. Qd2 {[%clk 0:02:31.2]} 7... a6 {[%clk 0:02:33.9]} 8. O-O-O {[%clk 0:02:26.6]}
8... Bd7 {[%clk 0:02:34.3]} 9. f4 {[%clk 0:02:22.1]} 9... b5 {[%clk 0:02:34]}
10. Nxc6 {[%clk 0:01:49]} 10... Bxc6 {[%clk 0:02:33.5]} 11. Bd3 {[%clk
0:01:49.9]} 11... Be7 {[%clk 0:02:32.8]} 12. Qe2 {[%clk 0:01:32.7]} 12... b4
{[%clk 0:02:27.6]} 13. Nb1 {[%clk 0:01:18]} 13... Qa5 {[%clk 0:02:26.7]} 14. a3
{[%clk 0:01:05]} 14... bxa3 {[%clk 0:02:19.3]} 15. Nxa3 {[%clk 0:01:03.6]} 15...
O-O {[%clk 0:02:17.2]} 16. Qe1 {[%clk 0:00:37.1]} 16... Qc7 {[%clk 0:02:12.1]}
17. Qh4 {[%clk 0:00:32.6]} 17... h6 {[%clk 0:01:57.5]} 18. Bxh6 {[%clk
0:00:16.9]} 18... gxh6 {[%clk 0:01:49.2]} 19. Qxh6 {[%clk 0:00:17.7]} 19... Nxe4
{[%clk 0:01:42.8]} 20. Rde1 {[%clk 0:00:12.9]} 20... d5 {[%clk 0:01:34]} 21. Re3
{[%clk 0:00:10.2]} 21... Bg5 {[%clk 0:01:18.5]} 22. fxg5 {[%clk 0:00:07.6]}
22... Qf4 {[%clk 0:01:17.8]} 23. Re1 {[%clk 0:00:06.6]} 23... d4 {[%clk
0:01:12.6]} 24. Bxe4 {[%clk 0:00:03.5]} 24... dxe3 {[%clk 0:01:08.2]} 25. g3
{[%clk 0:00:04.4]} 25... Qxe4 {[%clk 0:01:06.9]} 26. Rf1 {[%clk 0:00:03.2]}
26... e2 {[%clk 0:01:05.1]} 27. Re1 {[%clk 0:00:03.1]} 27... Qe3+ {[%clk
0:01:03]} 28. Kb1 {[%clk 0:00:02.8]} 28... Be4 {[%clk 0:01:03.1]} 29. Ka2 {[%clk
0:00:01.3]} 29... Qd2 {[%clk 0:01:02.1]} 30. Nc4 {[%clk 0:00:02.2]} 30... Qxe1
{[%clk 0:01:01.2]} 31. g6 {[%clk 0:00:02.4]} 31... Bxg6 {[%clk 0:01:00.6]} 32.
Ne5 {[%clk 0:00:02.5]} 32... Qa5+ {[%clk 0:00:59.3]} 33. Kb3 {[%clk 0:00:01.8]}
33... Qxe5 {[%clk 0:01:00.2]} 0-1

[Event "*** Titled Tuesday Blitz"]
[Site "Chess.com"]
[Date "2020.04.28"]
[Round "5"]
[White "hblanco"]
[Black "FMalexhdez"]
[Result "1-0"]
[WhiteElo "2482"]
[BlackElo "2117"]
[TimeControl "180+1"]
[EndTime "10:54:50 PDT"]
[Termination "hblanco won by resignation"]

1. d4 {[%clk 0:03:00.9]} 1... Nf6 {[%clk 0:02:59]} 2. c4 {[%clk 0:03:00.5]} 2...
e6 {[%clk 0:02:58.7]} 3. Nf3 {[%clk 0:03:00.3]} 3... b6 {[%clk 0:02:55.3]} 4. g3
{[%clk 0:03:00]} 4... Bb7 {[%clk 0:02:55.7]} 5. Bg2 {[%clk 0:02:59.8]} 5... c5
{[%clk 0:02:53.1]} 6. d5 {[%clk 0:02:59.2]} 6... exd5 {[%clk 0:02:50.6]} 7. Nh4
{[%clk 0:02:59.3]} 7... g6 {[%clk 0:02:50.3]} 8. Nc3 {[%clk 0:02:57.7]} 8... Bg7
{[%clk 0:02:45.9]} 9. Bg5 {[%clk 0:02:53.4]} 9... h6 {[%clk 0:02:01.5]} 10. Bxf6
{[%clk 0:02:52.5]} 10... Bxf6 {[%clk 0:02:00.9]} 11. Bxd5 {[%clk 0:02:52.2]}
11... Nc6 {[%clk 0:01:53.8]} 12. Ng2 {[%clk 0:02:49.1]} 12... O-O {[%clk
0:01:52.7]} 13. O-O {[%clk 0:02:42.3]} 13... Rb8 {[%clk 0:01:51.4]} 14. Qd2
{[%clk 0:02:41.7]} 14... Bg7 {[%clk 0:01:49.4]} 15. e3 {[%clk 0:02:32.1]} 15...
Ne5 {[%clk 0:01:43]} 16. f4 {[%clk 0:02:24]} 16... Ng4 {[%clk 0:01:40.2]} 17.
Rad1 {[%clk 0:02:11.9]} 17... Bxd5 {[%clk 0:01:29.9]} 18. Nxd5 {[%clk
0:02:07.9]} 18... b5 {[%clk 0:01:24.5]} 19. cxb5 {[%clk 0:02:04.8]} 19... Rxb5
{[%clk 0:01:21.5]} 20. b3 {[%clk 0:02:04.9]} 20... Re8 {[%clk 0:01:15]} 21. h3
{[%clk 0:02:01.3]} 21... Nf6 {[%clk 0:01:13.6]} 22. Nxf6+ {[%clk 0:02:01.2]}
22... Bxf6 {[%clk 0:01:05.9]} 23. Qxd7 {[%clk 0:01:59.5]} 23... Ra5 {[%clk
0:00:57.9]} 24. Qxd8 {[%clk 0:01:53]} 24... Rxd8 {[%clk 0:00:57.1]} 25. Rxd8+
{[%clk 0:01:51.2]} 25... Bxd8 {[%clk 0:00:57]} 26. Rf2 {[%clk 0:01:51.8]} 26...
f5 {[%clk 0:00:51.8]} 27. Rc2 {[%clk 0:01:50.8]} 27... Bb6 {[%clk 0:00:48.2]}
28. Kf2 {[%clk 0:01:48.5]} 28... Ra3 {[%clk 0:00:48.2]} 29. Ke2 {[%clk
0:01:36.1]} 29... a5 {[%clk 0:00:44.2]} 30. Kd3 {[%clk 0:01:19.5]} 30... a4
{[%clk 0:00:43.7]} 31. Kc4 {[%clk 0:01:18.9]} 31... axb3 {[%clk 0:00:43.4]} 32.
axb3 {[%clk 0:01:19.8]} 32... Ra1 {[%clk 0:00:35.6]} 33. Kb5 {[%clk 0:01:18.7]}
33... Ba7 {[%clk 0:00:35.3]} 34. Rd2 {[%clk 0:01:14.3]} 34... Kf7 {[%clk
0:00:28.5]} 35. Nh4 {[%clk 0:00:59.2]} 1-0

[Event "*** Titled Tuesday Blitz"]
[Site "Chess.com"]
[Date "2020.04.28"]
[Round "5"]
[White "Gennady_Kozlov"]
[Black "The_Machine04"]
[Result "1-0"]
[WhiteElo "2569"]
[BlackElo "2283"]
[TimeControl "180+1"]
[EndTime "10:54:54 PDT"]
[Termination "Gennady_Kozlov won by resignation"]

1. b3 {[%clk 0:03:00.9]} 1... Nf6 {[%clk 0:02:57.7]} 2. Bb2 {[%clk 0:03:01.8]}
2... d6 {[%clk 0:02:57]} 3. e3 {[%clk 0:03:02.5]} 3... Nbd7 {[%clk 0:02:55.2]}
4. f4 {[%clk 0:03:03]} 4... e5 {[%clk 0:02:54.2]} 5. Nf3 {[%clk 0:03:03.9]} 5...
exf4 {[%clk 0:02:49.2]} 6. exf4 {[%clk 0:03:04.8]} 6... Be7 {[%clk 0:02:47.3]}
7. Bd3 {[%clk 0:03:04.7]} 7... b6 {[%clk 0:02:41.3]} 8. O-O {[%clk 0:03:04.3]}
8... Bb7 {[%clk 0:02:41.3]} 9. b4 {[%clk 0:03:04.5]} 9... c5 {[%clk 0:02:37.4]}
10. bxc5 {[%clk 0:03:04.3]} 10... bxc5 {[%clk 0:02:36.1]} 11. Nc3 {[%clk
0:03:03.4]} 11... O-O {[%clk 0:02:34.9]} 12. Rb1 {[%clk 0:03:03]} 12... Bc6
{[%clk 0:02:33.2]} 13. Ng5 {[%clk 0:02:59.8]} 13... h6 {[%clk 0:02:27.5]} 14.
Nge4 {[%clk 0:02:59.6]} 14... Nxe4 {[%clk 0:02:24.3]} 15. Nxe4 {[%clk
0:03:00.5]} 15... Nf6 {[%clk 0:02:22.7]} 16. Qf3 {[%clk 0:02:56.3]} 16... d5
{[%clk 0:02:09.9]} 17. Nxf6+ {[%clk 0:02:48.4]} 17... Bxf6 {[%clk 0:02:09.8]}
18. Bxf6 {[%clk 0:02:45.3]} 18... Qxf6 {[%clk 0:02:10.7]} 19. Qe3 {[%clk
0:02:39.2]} 19... d4 {[%clk 0:02:07.6]} 20. Qe5 {[%clk 0:02:38.8]} 20... Qxe5
{[%clk 0:02:04.5]} 21. fxe5 {[%clk 0:02:39.7]} 21... Rae8 {[%clk 0:02:04.5]} 22.
Rbe1 {[%clk 0:02:31.2]} 22... Bd5 {[%clk 0:02:04.1]} 23. a3 {[%clk 0:02:29.2]}
23... Re7 {[%clk 0:01:57.8]} 24. c4 {[%clk 0:02:14.4]} 24... Bc6 {[%clk
0:01:49.9]} 25. Rf2 {[%clk 0:02:01.5]} 25... Rfe8 {[%clk 0:01:40.5]} 26. Rfe2
{[%clk 0:02:01.2]} 26... Bd7 {[%clk 0:01:37]} 27. h3 {[%clk 0:02:00.5]} 27...
Be6 {[%clk 0:01:36.5]} 28. Rb1 {[%clk 0:01:59.4]} 28... g6 {[%clk 0:01:26.1]}
29. Rb5 {[%clk 0:01:55.9]} 29... Rc7 {[%clk 0:01:21.7]} 30. Re1 {[%clk
0:01:52.7]} 30... Kg7 {[%clk 0:01:17.1]} 31. Ra5 {[%clk 0:01:49.1]} 31... Bd7
{[%clk 0:01:13.8]} 32. Kf2 {[%clk 0:01:45.3]} 32... Rb8 {[%clk 0:01:11.3]} 33.
Be4 {[%clk 0:01:43.6]} 33... Rb2 {[%clk 0:01:08.8]} 34. Ke2 {[%clk 0:01:43.3]}
34... Be6 {[%clk 0:01:02.2]} 35. Bd5 {[%clk 0:01:43.1]} 35... Bxd5 {[%clk
0:00:47.1]} 36. cxd5 {[%clk 0:01:44]} 36... c4 {[%clk 0:00:47.4]} 37. d6 {[%clk
0:01:42.7]} 37... Rd7 {[%clk 0:00:47.5]} 38. Rd5 {[%clk 0:01:39.7]} 38... d3+
{[%clk 0:00:45]} 39. Ke3 {[%clk 0:01:39.7]} 39... Ra2 {[%clk 0:00:33.2]} 40. Rc1
{[%clk 0:01:39.2]} 40... Rc2 {[%clk 0:00:26.8]} 41. Rb1 {[%clk 0:01:38.7]} 41...
Ra2 {[%clk 0:00:24.1]} 42. Rb4 {[%clk 0:01:38.3]} 42... Rc2 {[%clk 0:00:16.1]}
43. Rc5 {[%clk 0:01:38.1]} 43... f6 {[%clk 0:00:12.9]} 44. Rc7 {[%clk
0:01:37.9]} 44... fxe5 {[%clk 0:00:05.9]} 45. Rxd7+ {[%clk 0:01:37.3]} 45... Kf6
{[%clk 0:00:06.8]} 46. Rc7 {[%clk 0:01:37.3]} 46... c3 {[%clk 0:00:03.3]} 47.
Rxc3 {[%clk 0:01:35.7]} 47... Rxc3 {[%clk 0:00:02.9]} 48. dxc3 {[%clk
0:01:36.6]} 48... d2 {[%clk 0:00:03.5]} 49. Kxd2 {[%clk 0:01:36.6]} 49... Ke6
{[%clk 0:00:04.4]} 50. Ra4 {[%clk 0:01:35]} 50... Kxd6 {[%clk 0:00:04.9]} 51.
Ra6+ {[%clk 0:01:35.3]} 1-0

[Event "*** Titled Tuesday Blitz"]
[Site "Chess.com"]
[Date "2020.04.28"]
[Round "5"]
[White "PavelChernomordik"]
[Black "Pavalamalli"]
[Result "1-0"]
[WhiteElo "2408"]
[BlackElo "2225"]
[TimeControl "180+1"]
[EndTime "10:54:54 PDT"]
[Termination "PavelChernomordik won by resignation"]

1. e4 {[%clk 0:03:00.9]} 1... c5 {[%clk 0:02:59.7]} 2. Nc3 {[%clk 0:02:58]} 2...
e6 {[%clk 0:02:59.6]} 3. f4 {[%clk 0:02:56.8]} 3... Nc6 {[%clk 0:02:57.8]} 4.
Nf3 {[%clk 0:02:56.2]} 4... Nf6 {[%clk 0:02:55.4]} 5. Bb5 {[%clk 0:02:54.3]}
5... Qc7 {[%clk 0:02:47.9]} 6. O-O {[%clk 0:02:45]} 6... Be7 {[%clk 0:02:40.9]}
7. e5 {[%clk 0:02:40.7]} 7... Nh5 {[%clk 0:02:31.3]} 8. d3 {[%clk 0:02:31.7]}
8... g6 {[%clk 0:02:24.6]} 9. g4 {[%clk 0:02:22]} 9... Ng7 {[%clk 0:02:23.1]}
10. Ne4 {[%clk 0:02:22.2]} 10... a6 {[%clk 0:02:10.9]} 11. Bxc6 {[%clk
0:02:17.8]} 11... Qxc6 {[%clk 0:02:01.9]} 12. Nf6+ {[%clk 0:02:16.4]} 12... Kd8
{[%clk 0:01:54]} 13. d4 {[%clk 0:02:12]} 13... Bxf6 {[%clk 0:01:30.4]} 14. exf6
{[%clk 0:02:10.6]} 14... Ne8 {[%clk 0:01:28.8]} 15. Ne5 {[%clk 0:02:10]} 15...
Qd5 {[%clk 0:01:10]} 16. Nxf7+ {[%clk 0:02:04.6]} 16... Kc7 {[%clk 0:01:09.5]}
17. Nxh8 {[%clk 0:02:02.1]} 17... Nxf6 {[%clk 0:01:09.1]} 18. Be3 {[%clk
0:01:55.5]} 18... b5 {[%clk 0:01:00.8]} 19. dxc5 {[%clk 0:01:53.7]} 19... Qe4
{[%clk 0:00:54.2]} 20. Qd6+ {[%clk 0:01:47.7]} 20... Kd8 {[%clk 0:00:52.9]} 21.
Qd4 {[%clk 0:01:21.2]} 21... Ke7 {[%clk 0:00:39.4]} 22. g5 {[%clk 0:01:06.1]}
22... Qxd4 {[%clk 0:00:27.4]} 23. Bxd4 {[%clk 0:01:04.4]} 23... Nd5 {[%clk
0:00:24.3]} 24. Rf3 {[%clk 0:01:01.1]} 24... Bb7 {[%clk 0:00:21.7]} 25. Rh3
{[%clk 0:00:59.9]} 25... Nxf4 {[%clk 0:00:20]} 26. Rxh7+ {[%clk 0:00:58]} 26...
Kf8 {[%clk 0:00:19.4]} 27. Rf1 {[%clk 0:00:52.6]} 27... Kg8 {[%clk 0:00:18.5]}
28. Rg7+ {[%clk 0:00:50.4]} 28... Kxh8 {[%clk 0:00:18.6]} 29. Rxf4 {[%clk
0:00:49.9]} 1-0

[Event "*** Titled Tuesday Blitz"]
[Site "Chess.com"]
[Date "2020.04.28"]
[Round "5"]
[White "ALeks_Ivlev"]
[Black "Kostya26"]
[Result "1-0"]
[WhiteElo "2582"]
[BlackElo "2406"]
[TimeControl "180+1"]
[EndTime "10:54:55 PDT"]
[Termination "ALeks_Ivlev won on time"]

1. d4 {[%clk 0:03:00.9]} 1... d5 {[%clk 0:02:57.2]} 2. c4 {[%clk 0:03:00.7]}
2... e6 {[%clk 0:02:52.8]} 3. Nf3 {[%clk 0:03:00.5]} 3... Nf6 {[%clk 0:02:52.7]}
4. g3 {[%clk 0:03:00.7]} 4... c6 {[%clk 0:02:51.3]} 5. Nbd2 {[%clk 0:03:00.1]}
5... Be7 {[%clk 0:02:51]} 6. Bg2 {[%clk 0:03:00.4]} 6... O-O {[%clk 0:02:51.6]}
7. O-O {[%clk 0:03:00.1]} 7... Nbd7 {[%clk 0:02:52]} 8. Qc2 {[%clk 0:03:00.3]}
8... b6 {[%clk 0:02:51.1]} 9. e4 {[%clk 0:03:00.7]} 9... dxe4 {[%clk 0:02:51.7]}
10. Nxe4 {[%clk 0:03:00.7]} 10... Bb7 {[%clk 0:02:51.6]} 11. Rd1 {[%clk
0:03:00.8]} 11... Nxe4 {[%clk 0:02:25]} 12. Qxe4 {[%clk 0:02:59.5]} 12... Nf6
{[%clk 0:02:25.9]} 13. Qe2 {[%clk 0:02:56.5]} 13... Qc7 {[%clk 0:02:10.8]} 14.
Bf4 {[%clk 0:02:53.3]} 14... Bd6 {[%clk 0:02:10.4]} 15. Bxd6 {[%clk 0:02:35.5]}
15... Qxd6 {[%clk 0:02:10.1]} 16. Ne5 {[%clk 0:02:36.2]} 16... Rfd8 {[%clk
0:01:50.1]} 17. Rac1 {[%clk 0:02:32.6]} 17... Nd7 {[%clk 0:01:42.5]} 18. c5
{[%clk 0:02:18]} 18... bxc5 {[%clk 0:01:15]} 19. Nxd7 {[%clk 0:02:16.4]} 19...
Qxd7 {[%clk 0:01:02.7]} 20. dxc5 {[%clk 0:02:15.6]} 20... Qc7 {[%clk 0:00:59]}
21. b4 {[%clk 0:02:10.4]} 21... a5 {[%clk 0:00:54.1]} 22. a3 {[%clk 0:02:09.5]}
22... axb4 {[%clk 0:00:53.9]} 23. axb4 {[%clk 0:02:08.4]} 23... Rxd1+ {[%clk
0:00:49.9]} 24. Rxd1 {[%clk 0:02:07.3]} 24... Rd8 {[%clk 0:00:47.9]} 25. Rxd8+
{[%clk 0:02:04]} 25... Qxd8 {[%clk 0:00:47.5]} 26. b5 {[%clk 0:02:01.3]} 26...
Qd7 {[%clk 0:00:33.1]} 27. Qf3 {[%clk 0:01:30.4]} 27... Qd4 {[%clk 0:00:15.7]}
28. h4 {[%clk 0:01:20.4]} 28... Qxc5 {[%clk 0:00:14.6]} 29. bxc6 {[%clk
0:01:20.7]} 29... Bc8 {[%clk 0:00:14.5]} 30. Qd3 {[%clk 0:01:17.5]} 30... Qe7
{[%clk 0:00:11.3]} 31. Qb5 {[%clk 0:01:09.2]} 31... Kf8 {[%clk 0:00:09.3]} 32.
Qb8 {[%clk 0:01:08.3]} 32... Qe8 {[%clk 0:00:05.6]} 33. c7 {[%clk 0:01:07.7]}
33... Ke7 {[%clk 0:00:05.6]} 34. Bc6 {[%clk 0:00:57.1]} 1-0

[Event "*** Titled Tuesday Blitz"]
[Site "Chess.com"]
[Date "2020.04.28"]
[Round "5"]
[White "Dobuchak"]
[Black "tomozupan"]
[Result "0-1"]
[WhiteElo "2345"]
[BlackElo "2221"]
[TimeControl "180+1"]
[EndTime "10:54:57 PDT"]
[Termination "tomozupan won by checkmate"]

1. e4 {[%clk 0:03:00.9]} 1... e5 {[%clk 0:02:59.6]} 2. Nf3 {[%clk 0:03:00.9]}
2... Nc6 {[%clk 0:02:59.6]} 3. Nc3 {[%clk 0:03:01.5]} 3... Nf6 {[%clk
0:02:58.5]} 4. Be2 {[%clk 0:03:02.1]} 4... Bc5 {[%clk 0:02:57.7]} 5. Nxe5 {[%clk
0:03:01.6]} 5... Nxe5 {[%clk 0:02:55.2]} 6. d4 {[%clk 0:03:01.7]} 6... Bd6
{[%clk 0:02:55.6]} 7. dxe5 {[%clk 0:03:01.7]} 7... Bxe5 {[%clk 0:02:55.9]} 8.
Nb5 {[%clk 0:03:02.3]} 8... c6 {[%clk 0:02:53.6]} 9. f4 {[%clk 0:03:02.3]} 9...
Bb8 {[%clk 0:02:52.5]} 10. Nd6+ {[%clk 0:02:48.9]} 10... Bxd6 {[%clk 0:02:50.3]}
11. Qxd6 {[%clk 0:02:49.8]} 11... Nxe4 {[%clk 0:02:42.9]} 12. Qe5+ {[%clk
0:02:48.1]} 12... Qe7 {[%clk 0:02:37.3]} 13. Qxg7 {[%clk 0:02:47.9]} 13... Rf8
{[%clk 0:02:36.3]} 14. Be3 {[%clk 0:02:27.8]} 14... d5 {[%clk 0:02:20.5]} 15.
O-O-O {[%clk 0:02:22.9]} 15... Be6 {[%clk 0:02:10.3]} 16. Rhf1 {[%clk
0:02:09.4]} 16... O-O-O {[%clk 0:02:09.5]} 17. f5 {[%clk 0:02:08.5]} 17... Bd7
{[%clk 0:02:09.6]} 18. Bxa7 {[%clk 0:02:06.3]} 18... Rg8 {[%clk 0:01:52.4]} 19.
Qxh7 {[%clk 0:01:40.7]} 19... Qg5+ {[%clk 0:01:51.5]} 20. Kb1 {[%clk 0:01:38.7]}
20... Nd2+ {[%clk 0:01:51.2]} 21. Rxd2 {[%clk 0:01:31.3]} 21... Qxd2 {[%clk
0:01:50.5]} 22. Bf3 {[%clk 0:01:29]} 22... Rde8 {[%clk 0:01:46.5]} 23. a3 {[%clk
0:01:11]} 23... Rh8 {[%clk 0:01:29.7]} 24. Qxf7 {[%clk 0:01:05.8]} 24... Rhf8
{[%clk 0:01:29.6]} 25. Qg7 {[%clk 0:00:51.3]} 25... Bxf5 {[%clk 0:01:29.2]} 26.
Bb6 {[%clk 0:00:45.6]} 26... Bxc2+ {[%clk 0:01:05.8]} 27. Ka2 {[%clk 0:00:43.8]}
27... Kb8 {[%clk 0:00:51.2]} 28. Qc7+ {[%clk 0:00:16.9]} 28... Ka8 {[%clk
0:00:50.1]} 29. Bc5 {[%clk 0:00:17.4]} 29... Bd3 {[%clk 0:00:44]} 30. Qb6 {[%clk
0:00:14.4]} 30... Bc4+ {[%clk 0:00:42.7]} 31. Ka1 {[%clk 0:00:15]} 31... Re1+
{[%clk 0:00:39.8]} 32. Bd1 {[%clk 0:00:15.6]} 32... Rxd1+ {[%clk 0:00:37.7]} 33.
Rxd1 {[%clk 0:00:15]} 33... Qxd1# {[%clk 0:00:37.9]} 0-1

[Event "*** Titled Tuesday Blitz"]
[Site "Chess.com"]
[Date "2020.04.28"]
[Round "5"]
[White "mikolka1985"]
[Black "MRBigtimer"]
[Result "1-0"]
[WhiteElo "2588"]
[BlackElo "2312"]
[TimeControl "180+1"]
[EndTime "10:54:59 PDT"]
[Termination "mikolka1985 won by resignation"]

1. d4 {[%clk 0:03:00.9]} 1... Nf6 {[%clk 0:02:58.7]} 2. c4 {[%clk 0:03:00.3]}
2... c5 {[%clk 0:02:58.7]} 3. d5 {[%clk 0:02:59.7]} 3... b5 {[%clk 0:02:58.3]}
4. cxb5 {[%clk 0:02:58.6]} 4... a6 {[%clk 0:02:58.5]} 5. bxa6 {[%clk 0:02:58.1]}
5... Bxa6 {[%clk 0:02:58.3]} 6. Nc3 {[%clk 0:02:58.6]} 6... g6 {[%clk
0:02:58.5]} 7. g3 {[%clk 0:02:58.8]} 7... d6 {[%clk 0:02:56.8]} 8. Bg2 {[%clk
0:02:59.3]} 8... Bg7 {[%clk 0:02:56.7]} 9. Nf3 {[%clk 0:02:59.6]} 9... Nfd7
{[%clk 0:02:56.7]} 10. O-O {[%clk 0:02:56.5]} 10... Qa5 {[%clk 0:02:56.5]} 11.
Qc2 {[%clk 0:02:51.8]} 11... Nb6 {[%clk 0:02:54.4]} 12. Nd2 {[%clk 0:02:50.1]}
12... O-O {[%clk 0:02:24.8]} 13. h3 {[%clk 0:02:46.2]} 13... Nc4 {[%clk
0:02:04.8]} 14. Nxc4 {[%clk 0:02:42.9]} 14... Bxc4 {[%clk 0:02:04.6]} 15. Bd2
{[%clk 0:02:42.8]} 15... Qa6 {[%clk 0:02:02]} 16. Rfe1 {[%clk 0:02:41.6]} 16...
Qb7 {[%clk 0:01:41.9]} 17. b3 {[%clk 0:02:30.5]} 17... Ba6 {[%clk 0:01:41.8]}
18. Rab1 {[%clk 0:02:26.2]} 18... Nd7 {[%clk 0:01:40.8]} 19. Ne4 {[%clk
0:02:18.2]} 19... Rfc8 {[%clk 0:01:25]} 20. a4 {[%clk 0:02:15.3]} 20... Nf6
{[%clk 0:01:13.5]} 21. Nc3 {[%clk 0:02:11.5]} 21... Rab8 {[%clk 0:01:07.6]} 22.
e4 {[%clk 0:02:09.1]} 22... Nd7 {[%clk 0:01:06.8]} 23. f4 {[%clk 0:02:08.2]}
23... Bd4+ {[%clk 0:01:05.9]} 24. Kh2 {[%clk 0:02:07.3]} 24... Qc7 {[%clk
0:01:00.7]} 25. Na2 {[%clk 0:01:50.2]} 25... Qb7 {[%clk 0:00:36.7]} 26. Bc3
{[%clk 0:01:33.2]} 26... Bxc3 {[%clk 0:00:36]} 27. Qxc3 {[%clk 0:01:32.8]} 27...
Qb6 {[%clk 0:00:34.2]} 28. e5 {[%clk 0:01:31.4]} 28... Nf8 {[%clk 0:00:32.1]}
29. e6 {[%clk 0:01:16.5]} 29... f6 {[%clk 0:00:30.5]} 30. Qe3 {[%clk 0:01:11.6]}
30... Qa5 {[%clk 0:00:28.8]} 31. Rb2 {[%clk 0:01:01.9]} 31... Rb7 {[%clk
0:00:28.5]} 32. Reb1 {[%clk 0:01:00.1]} 32... Rcb8 {[%clk 0:00:28.4]} 33. f5
{[%clk 0:00:52.1]} 33... c4 {[%clk 0:00:20.5]} 34. b4 {[%clk 0:00:49.3]} 34...
Qxa4 {[%clk 0:00:20.7]} 35. Nc3 {[%clk 0:00:48.6]} 35... Qd7 {[%clk 0:00:16.2]}
36. exd7 {[%clk 0:00:45.8]} 1-0

[Event "*** Titled Tuesday Blitz"]
[Site "Chess.com"]
[Date "2020.04.28"]
[Round "5"]
[White "Cocaino74"]
[Black "pooh2012"]
[Result "1-0"]
[WhiteElo "2351"]
[BlackElo "2504"]
[TimeControl "180+1"]
[EndTime "10:55:00 PDT"]
[Termination "Cocaino74 won by resignation"]

1. e4 {[%clk 0:03:00.9]} 1... d6 {[%clk 0:03:00.8]} 2. d4 {[%clk 0:03:00.7]}
2... Nd7 {[%clk 0:03:01.4]} 3. c4 {[%clk 0:02:53.1]} 3... c6 {[%clk 0:02:59.9]}
4. Nc3 {[%clk 0:02:52.2]} 4... e5 {[%clk 0:03:00.4]} 5. Nf3 {[%clk 0:02:45.9]}
5... Ngf6 {[%clk 0:02:58.5]} 6. Be2 {[%clk 0:02:45.5]} 6... Be7 {[%clk
0:02:58.5]} 7. h3 {[%clk 0:02:40.2]} 7... O-O {[%clk 0:02:58.3]} 8. O-O {[%clk
0:02:31.8]} 8... Re8 {[%clk 0:02:52]} 9. Be3 {[%clk 0:02:30.5]} 9... Qc7 {[%clk
0:02:46.3]} 10. Qc2 {[%clk 0:02:20.6]} 10... a5 {[%clk 0:02:44.4]} 11. Rfd1
{[%clk 0:02:19.2]} 11... Nf8 {[%clk 0:02:29.5]} 12. c5 {[%clk 0:01:24.2]} 12...
dxc5 {[%clk 0:01:43.2]} 13. dxc5 {[%clk 0:01:04.8]} 13... Ne6 {[%clk 0:01:28.4]}
14. Na4 {[%clk 0:01:03]} 14... Nh5 {[%clk 0:00:49]} 15. Nb6 {[%clk 0:00:34.3]}
15... Rb8 {[%clk 0:00:44.5]} 16. Nxe5 {[%clk 0:00:34.2]} 16... Qxe5 {[%clk
0:00:37]} 17. Nc4 {[%clk 0:00:26.7]} 17... Qf6 {[%clk 0:00:21.2]} 18. e5 {[%clk
0:00:21]} 18... Qg6 {[%clk 0:00:20.1]} 19. Bd3 {[%clk 0:00:20.9]} 19... f5
{[%clk 0:00:05.6]} 20. Bxf5 {[%clk 0:00:21.4]} 20... Qf7 {[%clk 0:00:05.7]} 21.
Bxh7+ {[%clk 0:00:22]} 21... Kh8 {[%clk 0:00:06.1]} 22. Bg6 {[%clk 0:00:22.7]}
22... Kg8 {[%clk 0:00:03.2]} 23. Bxf7+ {[%clk 0:00:22.5]} 23... Kxf7 {[%clk
0:00:04.1]} 24. Qf5+ {[%clk 0:00:21.6]} 1-0